Cogmind - Beta 13 @@@ ROGUE MODE // 2024.03.04 @ 05:36:37 Player: J1ANG-5HI Result: Destroyed by Y-54 Guardian with Flak Gun Performance ------------- Evolutions (0) 0 Regions Visited (3) 600 Robots Destroyed (29) 145 Value Destroyed (706) 706 Prototype IDs (4) 80 Alien Tech Used (0) 0 Bonus (0) 0 TOTAL SCORE: 1531 Bonus ------- None Cogmind --------- Core Integrity 0/250 Matter 13/300 Energy 100/100 System Corruption 0% Temperature Cool (41) Movement Rolling (135) Ox3 Location -7/Recycling Parts ------- > --- POWER (1) -------- (None) > --- PROPULSION (2) --- Armored Wheel Armored Wheel > --- UTILITY (2) ------ Disposable Heat Sink Huge Storage Unit > --- WEAPON (2) ------- Subdweller Machine Gun Plasma Cutter > --- INVENTORY (25) --- Light Treads Light Treads Armored Wheel Scrap Engine Improved Heat Sink Cooling System High-capacity Matter Pod (31) Structural Scanner Hacking Suite Authchip [R/Combat] Authchip [R/Combat] Authchip [R/Combat] Authchip [R/Combat] Authchip [R/Combat] Authchip [R/Combat] Authchip [R/Combat] Authchip [Armor] Authchip [Weapon] Grenade Launcher Grenade Launcher Peak State ------------ > --- POWER ------------ Ion Engine > --- PROPULSION ------- Armored Wheel Armored Wheel > --- UTILITY ---------- Disposable Heat Sink Huge Storage Unit > --- WEAPON ----------- Subdweller Machine Gun Subdweller Machine Gun > --- INVENTORY -------- Light Treads Light Treads Armored Wheel Scrap Engine Improved Heat Sink Cooling System High-capacity Matter Pod Structural Scanner Hacking Suite Authchip [R/Combat] Authchip [R/Combat] Authchip [R/Combat] Authchip [R/Combat] Authchip [R/Combat] Authchip [R/Combat] Authchip [R/Combat] Authchip [Armor] Authchip [Weapon] Grenade Launcher Grenade Launcher Plasma Cutter [Rating: 19] Favorites ----------- Power Ion Engine Engine Ion Engine Power Core Light Nuclear Core Propulsion Armored Wheel Leg Aluminum Leg Wheel Armored Wheel Utility Light Armor Plating Device Disposable Heat Sink Storage Huge Storage Unit Protection Light Armor Plating Weapon Light Cannon Energy Gun Medium Laser Ballistic Gun Subdweller Machine Gun Ballistic Cannon Light Cannon Launcher Grenade Launcher Special Weapon Plasma Cutter Build | -11 -10 -10 -7 ------- Run | Yrd Mat Sub Rec Slots Evolved . | . . . . Power . | . . . . Propulsion . | . . . . Utility . | . . . . Weapon . | . . . . Parts Attached 24 | . 14 6 4 Power 2 | . 1 1 . Engine 1 | . . 1 . Core 1 | . 1 . . Reactor . | . . . . Propulsion 3 | . 2 1 . Treads . | . . . . Leg . | . . . . Wheel 3 | . 2 1 . Hover . | . . . . Flight . | . . . . Utility 7 | . 5 1 1 Device 1 | . . . 1 Storage 3 | . 3 . . Processor . | . . . . Hackware . | . . . . Protection 3 | . 2 1 . Artifact . | . . . . Weapon 12 | . 6 3 3 Energy Gun . | . . . . Energy Cannon . | . . . . Ballistic Gun 3 | . . 1 2 Ballistic Cannon 4 | . 4 . . Launcher 3 | . 2 1 . Special Weapon 2 | . . 1 1 Impact Weapon . | . . . . Slashing Weapon . | . . . . Piercing Weapon . | . . . . Special Melee Weapon . | . . . . Unidentified Prototypes . | . . . . Parts Lost 9 | . 1 5 3 Power 2 | . . 1 1 Propulsion 1 | . . 1 . Utility 3 | . 1 1 1 Weapon 3 | . . 2 1 Highest Loss Streak 4 | . 1 4 3 To Critical Strikes . | . . . . Average Slot Usage (%) 97 | . 98 99 88 Engine 7 | . 6 6 14 Core 6 | . 7 7 . Leg 5 | . 10 . . Wheel 22 | . 16 28 28 Storage 14 | . 14 14 14 Protection 13 | . 13 13 13 Energy Gun 3 | . 7 . . Ballistic Gun 2 | . . 5 2 Ballistic Cannon 17 | . 20 20 . Launcher 2 | . . . 13 Naked Turns . | . . . . Heaviest Build 95 | 13 94 95 95 Greatest Support 24 | 20 24 24 24 Greatest Overweight (x) 7 | . 7 3 3 Average Overweight (x) 1 | . . 3 3 Largest Inventory Capacity 25 | . 25 25 25 Average Capacity 19 | . 12 25 25 Most Carried 24 | . 12 14 24 Average Carried 11 | . 9 12 16 Final Capacity 25 | 8 25 25 25 Final Carried 21 | 6 12 12 21 Class Distribution -------------------- 100% | Mutant Dominant Class ---------------- Mutant | -10/Materials Mutant | -10/Subcaves Mutant | -7/Recycling Resources | -11 -10 -10 -7 ----------- Run | Yrd Mat Sub Rec Matter Collected 946 | 200 386 360 . Remotely . | . . . . Salvage Created 751 | . 543 208 . Parts 51 | . 35 16 . Haulers Intercepted 2 | . 2 . . Recyclers Shooed . | . . . . Parts Field Recycled . | . . . . Retrieved Matter . | . . . . Parts Self-Destructed 7 | . . 7 . Prevented . | . . . . Kills | -11 -10 -10 -7 ------- Run | Yrd Mat Sub Rec Combat Hostiles Destroyed 20 | . 12 8 . Guns 4 | . 2 2 . Cannons 12 | . 6 6 . AOE 4 | . 4 . . Classes Destroyed 7 | . 5 2 . Worker 2 | . 2 . . Hauler 2 | . 2 . . Turret 2 | . . 2 . Watcher 3 | . 3 . . Swarmer 6 | . 3 3 . Grunt 9 | . 9 . . Subdweller 5 | . . 5 . Best Kill Streak 12 | . 12 3 . Combat Bots Only 8 | . 8 3 . Max Kills in Single Turn 3 | . 3 1 . Gunslinging . | . . . . Exploded 2 | . 2 . . Melee . | . . . . Uniques/NPCs Destroyed . | . . . . Combat | -11 -10 -10 -7 -------- Run | Yrd Mat Sub Rec Hostile Shots Fired 209 | . 72 83 54 Missed 67 | . 21 31 15 Damage Taken 1653 | . 575 784 294 Core 253 | . 79 85 89 Absorbed by Shields . | . . . . Regen/Repaired (Parts) 47 | . 47 . . Core Remaining (%) 100 | 100 . . . Volleys Fired 120 | . 36 79 5 Largest 2 | . 2 2 2 Hottest 90 | . 90 70 60 Shots Fired 208 | . 65 133 10 Gun 38 | . 16 14 8 Cannon 152 | . 44 108 . Launcher 16 | . 5 10 1 Special 2 | . . 1 1 Kinetic 174 | . 44 122 8 Thermal 18 | . 16 1 1 Explosive 16 | . 5 10 1 Electromagnetic . | . . . . Robot Hit Streak 8 | . 7 8 8 Robot Miss Streak 4 | . 4 2 1 Penetration Max . | . . . . Secondary Targets . | . . . . Shots Hit Robots 92 | . 39 44 9 Core Hits 55 | . 30 22 3 Critical Kills . | . . . . Critical Parts Destroyed . | . . . . Critical Strikes 6 | . 4 2 . Burn 2 | . 2 . . Blast 4 | . 2 2 . Melee Attacks . | . . . . Impact . | . . . . Slashing . | . . . . Piercing . | . . . . Sneak Attacks . | . . . . Combat Hostiles . | . . . . Follow-up Attacks . | . . . . Damage Inflicted 2019 | . 969 854 196 Guns 533 | . 128 225 180 Cannons 905 | . 468 437 . Explosions 565 | . 373 188 4 Melee . | . . . . Ramming 4 | . . 4 . Kinetic 1310 | . 468 662 180 Thermal 140 | . 128 . 12 Explosive 565 | . 373 188 4 Electromagnetic . | . . . . Impact . | . . . . Slashing . | . . . . Piercing . | . . . . Highest Corruption . | . . . . Average Corruption . | . . . . Corruption Purged . | . . . . Corruption Blocked . | . . . . Overload Shots . | . . . . Overflow Damage 15 | . 15 . . Projectiles 11 | . 11 . . Explosions 4 | . 4 . . Melee . | . . . . Knockbacks 12 | . 5 7 . Impact . | . . . . Kinetic 11 | . 5 6 . Secondary 1 | . . 1 . Self-Inflicted Damage 52 | . 31 21 . Shots 2 | . 1 1 . Rammed 1 | . . 1 . Targets Rammed 1 | . . 1 . Kicked . | . . . . Crushed . | . . . . Highest Temperature 285 | . 285 . 79 Average Temperature 100 | . 107 . 40 Received Heat Transfer 456 | . 264 108 84 Effects 1 | . 1 . . Energy Bleed 1 | . 1 . . Siege Activations . | . . . . Robots Corrupted . | . . . . Combat Hostiles . | . . . . Parts Fried . | . . . . Impact Corruptions . | . . . . Robots Melted . | . . . . Combat Hostiles . | . . . . Parts Melted 2 | . 2 . . Heat Transferred 520 | . 483 . 37 Parts Sabotaged . | . . . . Parts Stolen . | . . . . Parts Stripped . | . . . . Power Chain Reactions . | . . . . Alert | -11 -10 -10 -7 ------- Run | Yrd Mat Sub Rec Peak Influence 359 | . 306 . 359 Initial 345 | . . . 345 Average 188 | . 142 . 351 Maximum Alert Level 1 | . 1 . 1 Low Security (%) 53 | . 68 . . Level 1 46 | . 31 . 100 Level 2 . | . . . . Level 3 . | . . . . Level 4 . | . . . . Level 5 . | . . . . High Security . | . . . . Max Security . | . . . . Squads Dispatched 2 | . 2 . . Investigation . | . . . . Extermination . | . . . . Reinforcement 2 | . 2 . . Assault . | . . . . Garrison . | . . . . Intercept . | . . . . Searches Triggered . | . . . . Construction Impeded . | . . . . Haulers Reinforced . | . . . . Active Scanning Responses . | . . . . Cargo Convoy Interrupts . | . . . . Stealth | -11 -10 -10 -7 --------- Run | Yrd Mat Sub Rec Distress Signals 2 | . 2 . . Communications Jammed . | . . . . Distress Signals . | . . . . Times Spotted 53 | . 17 35 1 Peak Tracking Total 8 | . 8 5 1 Tactical Retreats 4 | . . 4 . Traps | -11 -10 -10 -7 ------- Run | Yrd Mat Sub Rec Traps Triggered . | . . . . Indirectly . | . . . . Trap Hack Attempts . | . . . . Triggered . | . . . . Disarmed . | . . . . Reprogrammed . | . . . . Reused . | . . . . Traps Extracted . | . . . . Installed . | . . . . Triggered . | . . . . Machines | -11 -10 -10 -7 ---------- Run | Yrd Mat Sub Rec Machines Disabled 2 | . . 2 . Max in Single Turn 2 | . . 2 . Machines Repaired . | . . . . Machines Dismantled . | . . . . Machines Sabotaged . | . . . . Overloaded Fab Kills . | . . . . Hacking | -11 -10 -10 -7 --------- Run | Yrd Mat Sub Rec Machines Accessed 11 | . 8 . 3 Terminals 8 | . 6 . 2 Fabricators . | . . . . Repair Stations 1 | . 1 . . Recycling Units 2 | . 1 . 1 Scanalyzers . | . . . . Garrison Access . | . . . . Total Hacks 37 | . 22 . 15 Successful 18 | . 12 . 6 Failed 19 | . 10 . 9 Catastrophic 1 | . . . 1 Database Lockouts . | . . . . Manual 25 | . 17 . 8 Terminals 30 | . 18 . 12 Fabricators . | . . . . Repair Stations 2 | . 2 . . Recycling Units 5 | . 2 . 3 Scanalyzers . | . . . . Garrison Access . | . . . . Terminal Hacks 8 | . 4 . 4 Robot Schematic 1 | . . . 1 Robot Analysis 4 | . 2 . 2 Prototype ID Bank 2 | . 1 . 1 Zone Layout 1 | . 1 . . Fabricator Hacks . | . . . . Repair Station Hacks 2 | . 2 . . Scan Component 1 | . 1 . . Repair 1 | . 1 . . Recycling Unit Hacks 1 | . . . 1 Report Inventory 1 | . . . 1 Scanalyzer . | . . . . Garrison Access Hacks . | . . . . Unauthorized Hacks 7 | . 6 . 1 Terminals 5 | . 4 . 1 Assimilate 1 | . 1 . . Botnet 4 | . 3 . 1 Fabricators . | . . . . Repair Stations . | . . . . Recycling Units 2 | . 2 . . Reject 1 | . 1 . . Mask 1 | . 1 . . Scanalyzers . | . . . . Garrison Access . | . . . . Data Cores Recovered . | . . . . Used . | . . . . Hacking Detections 11 | . 8 . 3 Full Trace Events 1 | . 1 . . Feedback Events . | . . . . Feedback Blocked . | . . . . Robot Schematics Acquired 1 | . . . 1 Robots Built . | . . . . Authchips . | . . . . Time . | . . . . Total Robot Build Rating . | . . . . Part Schematics Acquired . | . . . . Parts Built . | . . . . Authchips . | . . . . Time . | . . . . Total Part Build Rating . | . . . . Parts Repaired 1 | . 1 . . Time 26 | . 26 . . Parts Recycled . | . . . . Recycled Matter . | . . . . Retrieved Matter . | . . . . Retrieved Components . | . . . . Parts Scanalyzed . | . . . . Part Schematics Acquired . | . . . . Parts Damaged . | . . . . Bothacking | -11 -10 -10 -7 ------------ Run | Yrd Mat Sub Rec Used RIF Installer . | . . . . Robots Hacked . | . . . . Non-combat . | . . . . Combat . | . . . . Robot Hacks Applied . | . . . . Relay Couplers Released . | . . . . Fabnet Peak Effective % . | . . . . Robots Rewired . | . . . . Allies Hacked . | . . . . Hacks Repelled . | . . . . Allies | -11 -10 -10 -7 -------- Run | Yrd Mat Sub Rec Total Allies 1 | . 1 . . Largest Group 1 | . 1 1 . Highest-Rated Group 10 | . 10 10 . Highest-Rated Ally 10 | . 10 10 . Total Orders . | . . . . Ally Attacks . | . . . . Total Damage . | . . . . Kills . | . . . . Allies Corrupted . | . . . . Allies Melted . | . . . . Intel | -11 -10 -10 -7 ------- Run | Yrd Mat Sub Rec Robot Analysis Total 4 | . 2 . 2 Derelict Logs Recovered 1 | . . 1 . Drone Launches . | . . . . Drone Recoveries . | . . . . Exploration | -11 -10 -10 -7 ------------- Run | Yrd Mat Sub Rec Turns Passed 2574 | . 1210 1025 339 Spaces Moved 1679 | 1 880 574 224 Core 2 | . 2 . . Treads . | . . . . Legs 265 | 1 264 . . Wheels 1412 | . 614 574 224 Hover . | . . . . Flight . | . . . . Fastest Speed 90 | 120 90 135 135 Average Speed 124 | 120 114 135 135 Slowest Speed 400 | 120 400 135 135 Overloaded Moves . | . . . . Propulsion Burnouts . | . . . . Robots Hopped . | . . . . Cave-ins Triggered . | . . . . Exploration Rate (%) 40 | 2 93 28 38 Regions Visited 3 Branch Regions 2 Pre-discovered Areas 1 | . . 1 . Known Exits Taken . | . . . . Unknown Exits Taken 3 | 1 1 1 . Scrap Searched 1 | . . 1 . Spaces Dug . | . . . . Terrain Destroyed 48 | . 24 17 7 Melee . | . . . . Projectile . | . . . . AOE 48 | . 24 17 7 Terrain Rammed . | . . . . Walls Destroyed . | . . . . Machines Disabled . | . . . . Actions | -11 -10 -10 -7 --------- Run | Yrd Mat Sub Rec Total 1963 | . 1022 689 252 Wait 96 | . 65 25 6 Move 1676 | . 879 573 224 Hop . | . . . . Pick Up 30 | . 14 5 11 Fast Attach 5 | . 5 . . Attach 10 | . 2 5 3 Detach 2 | . 1 . 1 Swap 9 | . 7 1 1 Drop 14 | . 13 . 1 Fire 120 | . 36 79 5 Melee . | . . . . Ram 1 | . . 1 . Kick . | . . . . Crush . | . . . . Escape Stasis . | . . . . Rewire . | . . . . Trap . | . . . . Miscellaneous . | . . . . Route ------- -11/Scrapyard -10/Materials (discovered 6 exits: [*Mat x3] / [*Min x2] / [*Sub]) -10/Subcaves -7/Recycling History --------- Turn | Location | Event 1 | -11/Scrapyard | Discovered new exit (range 0) 1 | -11/Scrapyard | Entered Materials 206 | -10/Materials | Discovered new exit (range 13) 302 | -10/Materials | Build established: Mutant 441 | -10/Materials | Discovered new exit (range 14) 446 | -10/Materials | Destroyed 8 combat bots 583 | -10/Materials | Repaired Grenade Launcher 735 | -10/Materials | Discovered new exit (range 16) 846 | -10/Materials | Discovered new exit (range 6) 1014 | -10/Materials | Discovered new exit (range 15) 1195 | -10/Materials | Discovered new exit (range 6) 1211 | -10/Materials | Entered Subcaves 1211 | -10/Subcaves | Accompanied by 1 ally 1218 | -10/Subcaves | Learned Materials stockpile data 1230 | -10/Subcaves | Shifting Twisted Machinery released Sub. Machine Gun 1380 | -10/Subcaves | Learned location of Zion (-6) 1380 | -10/Subcaves | Met a Zionite searching for "candidates" 1478 | -10/Subcaves | Shifting Twisted Machinery released Sub. Monowheel 1583 | -10/Subcaves | Shifting Twisted Machinery released Sub. Power Source 1586 | -10/Subcaves | Shifting Twisted Machinery released Sub. Power Source 1769 | -10/Subcaves | Core integrity fell below 50% 1788 | -10/Subcaves | Lost 4 parts (1p1n1u1w) 2163 | -10/Subcaves | Discovered new exit (range 10) 2236 | -10/Subcaves | Entered Recycling 2242 | -7/Recycling | Found Scrap Engine 2570 | -7/Recycling | Core integrity fell below 20% 2575 | -7/Recycling | Destroyed by Y-54 Guardian with Flak Gun Last Messages --------------- 02497_ Acquired Corrupted Authchip [R/Combat]. 02508_ Acquired Corrupted Authchip [R/Combat]. 02510_ Acquired Corrupted Authchip [Propulsion]. 02516_ Dropped Corrupted Authchip [Propulsion]. 02521_ Acquired Corrupted Authchip [R/Combat]. 02525_ R-06 Scavenger collects Corrupted Authchip [Propulsion]. 02532_ Acquired Corrupted Authchip [R/Combat]. 02550_ Y-54 Guardian springs to life. 02563_ U-05 Engineer lays Concrete. 02566_ U-05 Engineer builds a Wall. 02569_ Lgt. Armor Plating destroyed. 02570_ U-05 Engineer lays Concrete. 02572_ Sub. Machine Gun destroyed. 02573_ U-05 Engineer lays Concrete. 02574_ U-05 Engineer builds a Wall. 02574_ U-05 Engineer lays Concrete. 02575_ Ion Engine destroyed. Map ----- +----------------------------------------------------+ | ?????#"" # #?# | | ?????### + #?# | | ???????# # #?####+ | | ???????######### !!### #??# | | ???????????????# ! #?# #??# | | ???????????????#####?# #??# | | ?????????????????????# #??# | | ?????????????????????#####+########??# | | ?????????????????????????# #?????????## | | ?????????????????????????# #???????##?# | | ???????????????????#####?# ######### ## | | ???????????????????#"""#?# ## # | | ??????????##########"Y"### ## + | | ??????????# + ## # | | ??????????# ### + # | | ??????????# #?# # ?# | | ??????????# ### # ?# | | ??????????# + + ??# | | ??????????#! ! ### ## ??# | | ??????????#! #?# ##+#####???# | | ??????????# #?# ?????????### | | ??????????# u #?# ??????????? | | ?????????## #?" #?????????? | | ?????????# u #"Y ?????????? | | ?????????# #"" #######+##????????? | | ?????????# u @### #?????????????????? | | ?????????######Y##?# ??????????????????? | | ???????+ ???u ? ??????????????????? | | ??????????? ??????????????????? | | ????????? ??????????????????? | | ????????# # +?????????????????? | | ????????#?# #?????????????????? | | ??????????# #?????????????????? | | ??????????# #?????????????????? | | ??????????# #?????????????????? | | ?????????? ?????????????????? | | ?????????## ##""Y"????????????????? | | ??????????# #?"""""???????????????? | | ??????????# #?????????????????????? | | ??????????# #?????????????????????? | | ??????????? #?????????????????????? | | ????????????? ??????????????????????? | | ????????????????????????????????????????? | | ????????????????????????????????????????? | | ????????????????????????????????????????? | | ????????????????????????????????????????? | | ????????????????????????????????????????? | | ????????????????????????????????????????? | | ????????????????????????????????????????? | | ????????????????????????????????????????? | +----------------------------------------------------+ Best States ------------- Heat Dissipation 25 Energy Generation 14 Energy Capacity 250 Matter Stores 300 Matter Capacity 300 Sight Range 16 Terrain Scan Density 10 Armor Coverage 150 Evasion (%) 55 Authchip Count 9 Item Schematics ----------------- None Robot Schematics ------------------ S-27 Virus | -7/Recycling | Hacked Fabricated ------------ Nothing Alien Tech Used ----------------- None Achievements -------------- None Challenges ------------ None Game ------ Seed SmartbombCargoVibroblade Manual? 0 Play Time 00:30:10 Cumulative 172.0 hours Start 2024.03.04 @ 05:02:32 End 2024.03.04 @ 05:36:37 Sessions 1 Manual Loads 0 Difficulty Rogue Special Mode None Game No. 129 Rogue 119 Adventurer 0 Explorer 10 Win Type - Total 3 Types 3/0/0/0/0/0/0/0/0 Lore% 57 Gallery% 67 Achievement% 51 Wizard Run 0 Options --------- Layout 1 ASCII 0 Keyboard 0 Movement Arrows Keybinds 1 Fullscreen 1 Font 24/Smallcaps Map View 50x35 Zoom Use 0% Tactical HUD 1 Map Filters NONE Filters NONE Steam 1 RUN: 7a464ad5-cc69-4cd7-8fd2-10225dc00974